fUSD/lending_fUSD_20240422
["ID","MTS","AMOUNT","RATE_DAILY","PERIOD"]
[323162505,1713760246093,-850.0,0.00015323,2]
[323162506,1713760246102,-150.0,0.00015334,2]
[323162507,1713760246111,-150.0,0.0001534,2]
[323162508,1713760246121,-150.0,0.00015372,2]
[323162509,1713760246130,-39837.8549343,0.0001539,2]
[323162510,1713760246140,-159.28690721,0.00015394,2]
[323162511,1713760246149,-150.0,0.00015402,2]
[323162512,1713760246159,-150.0,0.00015409,2]
[323162513,1713760246168,-187.054937,0.00015415,2]
[323162514,1713760246178,-152.625433,0.00015415,2]
[323162515,1713760246187,-1790.41175,0.00015415,2]
[323162516,1713760246198,-4426.11513,0.00015415,2]
[323162517,1713760246207,-8484.645848,0.00015415,2]
[323162518,1713760246216,-150.0,0.00015439,2]
[323162519,1713760246226,-150.0,0.00015446,2]
[323162520,1713760246235,-150.0,0.00015464,2]
[323162521,1713760246244,-178.71431586,0.00015473,2]
[323162522,1713760246254,-5796.49822121,0.00015474,2]
[323162523,1713760246263,-178.71431586,0.00015479,2]
[323162524,1713760246272,-150.0,0.00015484,2]
[323162525,1713760246282,-637.91924624,0.000155,2]
[323162526,1713760246291,-155.0,0.000155,2]
[323162527,1713760246300,-1001.59,0.000155,2]
[323162528,1713760246310,-5000.0,0.000155,2]
[323162529,1713760246319,-7999.99,0.000155,2]
[323162530,1713760246328,-8000.0,0.000155,2]
[323162531,1713760246337,-5000.0,0.000155,2]
[323162532,1713760246346,-5000.0,0.000155,2]
[323162533,1713760246355,-150.0,0.000155,2]
[323162534,1713760246364,-150.0,0.00015521,2]
[323162535,1713760246374,-150.44,0.00015521,2]
[323162536,1713760246383,-8000.0,0.00015525,2]
[323162537,1713760246392,-150.0,0.00015526,2]
[323162538,1713760246401,-7956.21883049,0.00015527,2]
[323162539,1713760246597,-2754.1568054,0.00013698,2]
[323162540,1713760247840,-369.99397605,0.00012899,2]
[323162541,1713760247852,-5853.2531946,0.00013698,2]
[323162542,1713760247862,-8607.41,0.00013698,2]
[323162543,1713760247872,-8607.41,0.00013698,2]
[323162544,1713760247881,-8607.41,0.00013698,2]
[323162545,1713760247890,-8607.41,0.00013698,2]
[323162546,1713760247899,-8607.41,0.00013698,2]
[323162547,1713760247909,-8607.41,0.00013698,2]
[323162548,1713760247918,-6145.09282936,0.00013698,2]
[323162549,1713760247930,-492.40673128,0.00013698,2]
[323162550,1713760247961,-675.77649049,0.00013698,2]
[323162551,1713760247972,-1294.13394887,0.00013698,2]
[323162552,1713760247982,-597.55103019,0.00013698,2]
[323162553,1713760247996,-822.21470505,0.00013698,2]
[323162554,1713760248102,-7187.64426476,0.00013698,2]
[323162555,1713760248112,-8607.41,0.00013698,2]
[323162556,1713760248121,-8607.41,0.00013698,2]
[323162557,1713760248131,-8607.47455201,0.00013698,2]
[323162558,1713760248140,-609.0,0.00013966,2]
[323162559,1713760248150,-1873.57193888,0.00015527,2]
[323162560,1713760248159,-10165.60611683,0.00015527,2]
[323162561,1713760248168,-5000.0,0.00015531,2]
[323162562,1713760248178,-5000.0,0.00015531,2]
[323162563,1713760248188,-5000.0,0.00015531,2]
[323162564,1713760248199,-500.0,0.0001555,2]
[323162565,1713760248209,-8000.0,0.0001555,2]
[323162566,1713760248218,-150.0,0.00015559,2]
[323162567,1713760248227,-5000.0,0.00015563,2]
[323162568,1713760248237,-5000.0,0.00015563,2]
[323162569,1713760248246,-5000.0,0.00015563,2]
[323162570,1713760248255,-8000.0,0.00015575,2]
[323162571,1713760248264,-150.0,0.00015587,2]
[323162572,1713760248273,-2765.35,0.0001559,2]
[323162573,1713760248282,-911.92,0.00015594,2]
[323162574,1713760248291,-5000.0,0.00015594,2]
[323162575,1713760248301,-150.0,0.00015596,2]
[323162576,1713760248310,-150.0,0.000156,2]
[323162577,1713760248319,-8000.0,0.000156,2]
[323162578,1713760248328,-2910.1695905,0.00015616,2]
[323162579,1713760248337,-8000.0,0.00015625,2]
[323162580,1713760248346,-5000.0,0.00015625,2]
[323162581,1713760248355,-1127.86000519,0.00015633,2]
[323162582,1713760248364,-150.0,0.00015633,2]
[323162583,1713760248373,-150.0,0.00015649,2]
[323162584,1713760248382,-8000.0,0.0001565,2]
[323162585,1713760248392,-5000.0,0.00015656,2]
[323162586,1713760248402,-1000.0,0.00015662,2]
[323162587,1713760248411,-10000.0,0.00015662,2]
[323162588,1713760248420,-150.0,0.00015671,2]
[323162589,1713760248430,-8000.0,0.00015675,2]
[323162590,1713760248438,-5000.0,0.00015688,2]
[323162591,1713760248449,-150.44,0.0001569,2]
[323162592,1713760248458,-25681.90931478,0.000157,2]
[323162593,1713760248633,-3319.39127622,0.000157,2]
[323162594,1713760248643,-3007.6210464,0.000157,2]
[323162596,1713760292711,1750.0,0.00012,2]
[323162600,1713760712147,659.80755467,0.00024999,90]
[323162601,1713760745701,144060.94603706,0.000273,120]
[323162602,1713760761678,30000.0,0.00027201,120]
[323162603,1713760803072,100000.0,0.00027111,120]
[323162605,1713760839727,168851.0,0.00027111,120]
[323162606,1713760924974,1000.0,0.000271,120]
[323162607,1713761217019,500.0,0.00026,90]
[323162608,1713761291818,323.32,0.00011751,2]
[323162617,1713761432424,-236.51827636,0.00012121,2]
[323162618,1713761432434,-369.99397605,0.00012122,2]
[323162619,1713761432443,-404.71022701,0.00012123,2]
[323162620,1713761432453,-531.7411,0.000128,2]
[323162621,1713761432462,-250.0999,0.000128,2]
[323162622,1713761432471,-478.7599,0.000128,2]
[323162623,1713761432480,-652.91667682,0.00013471,2]
[323162624,1713761432491,-684.71908266,0.00013471,2]
[323162625,1713761432504,-2149.8678,0.00013471,2]
[323162626,1713761432566,-1277.33644052,0.00013471,2]
[323162627,1713761432575,-835.21,0.00013513,2]
[323162628,1713761432583,-500.0,0.00013613,2]
[323162629,1713761432592,-600.0,0.00013662,2]
[323162630,1713761432602,-400.0,0.00013689,2]
[323162631,1713761432611,-499.99,0.00013699,2]
[323162632,1713761432620,-500.0,0.00013699,2]
[323162633,1713761432630,-2751.0,0.00013699,2]
[323162634,1713761432638,-2636.73555948,0.00013699,2]
[323162635,1713761432656,-142.65444052,0.00013699,2]
[323162637,1713761432666,-1500.0,0.00013699,2]
[323162638,1713761432679,-200.0,0.00013699,2]
[323162639,1713761432688,-786.22,0.00013699,2]
[323162640,1713761432697,-4589.89517071,0.000137,2]
[323162641,1713761432706,-168.0,0.00013752,2]
[323162642,1713761432716,-156.27,0.00013765,2]
[323162643,1713761432726,-1800.0,0.00014,2]
[323162644,1713761432735,-409.04217289,0.00014,2]
[323162645,1713761432745,-155.0,0.00014,2]
[323162646,1713761432754,-323.32,0.00014015,2]
[323162647,1713761432764,-461.0,0.00014246,2]
[323162648,1713761432774,-969.0,0.00014246,2]
[323162649,1713761433014,-2294.0,0.00014246,2]
[323162650,1713761433043,-1393.0,0.00014246,2]
[323162651,1713761433052,-1255.0,0.00014246,2]
[323162652,1713761433061,-609.0,0.00014246,2]
[323162653,1713761433070,-437.0,0.00014246,2]
[323162654,1713761433079,-828.053,0.00014246,2]
[323162655,1713761433088,-1951.0,0.00014246,2]
[323162656,1713761433097,-257.0,0.00014246,2]
[323162657,1713761433106,-2276.04522588,0.00014246,2]
[323162658,1713761433118,-841.95477412,0.00014246,2]
[323162659,1713761433127,-805.15267244,0.00014246,2]
[323162660,1713761433253,-1638.84732756,0.00014246,2]
[323162661,1713761433263,-399.0,0.00014246,2]
[323162662,1713761433272,-1474.0,0.00014246,2]
[323162663,1713761433281,-150.0,0.00014246,2]
[323162664,1713761433290,-150.0,0.00014246,2]
[323162665,1713761433299,-214.0,0.00014246,2]
[323162666,1713761433309,-150.54674603,0.00014246,2]
[323162678,1713761438402,-1489.45325397,0.00014246,2]
[323162679,1713761438411,-1140.0,0.00014246,2]
[323162680,1713761438422,-443.0,0.00014246,2]
[323162681,1713761438437,-320.0,0.00014246,2]
[323162682,1713761438446,-5389.10272367,0.00014246,2]
[323162683,1713761438568,-503.89727633,0.00014246,2]
[323162684,1713761438578,-150.0,0.00014246,2]
[323162685,1713761438587,-150.0,0.00014246,2]
[323162686,1713761438595,-1206.76334099,0.00014246,2]
[323162687,1713761438607,-5180.7408274,0.00014246,2]
[323162688,1713761438618,-2703.63214319,0.00014246,2]
[323162689,1713761438629,-18034.18912017,0.00014246,2]
[323162868,1713761440524,-478.06195785,0.00014246,2]
[323162906,1713761441641,-10085.6126104,0.00014246,2]
[323162907,1713761441651,-909.959,0.00014246,2]
[323162908,1713761441661,-5729.0,0.00014246,2]
[323162909,1713761441670,-150.0,0.00014246,2]
[323162910,1713761441683,-659.176,0.00014246,2]
[323162911,1713761441692,-150.556,0.00014246,2]
[323162912,1713761441701,-2503.878197,0.00014365,2]
[323162913,1713761441710,-13540.901953,0.00014365,2]
[323162914,1713761441719,-6911.815131,0.00014365,2]
[323162915,1713761441729,-156.27,0.00014482,2]
[323162916,1713761441739,-2503.878197,0.00014545,2]
[323162917,1713761441749,-13540.901953,0.00014545,2]
[323162918,1713761441758,-6911.815131,0.00014545,2]
[323162919,1713761441768,-451.98,0.00014714,3]
[323162920,1713761441778,-225.99,0.00014714,3]
[323162921,1713761441788,-678.0,0.00014714,3]
[323162922,1713761441798,-2503.878197,0.00014724,2]
[323162923,1713761441807,-13540.901953,0.00014724,2]
[323162924,1713761441818,-6911.815131,0.00014724,2]
[323162925,1713761441828,-2503.878197,0.00014904,2]
[323162926,1713761441838,-13540.901953,0.00014904,2]
[323162927,1713761441848,-6911.815131,0.00014904,2]
[323162928,1713761441858,-16904.8772,0.00014983,2]
[323162929,1713761441867,-150.0,0.00014992,2]
[323162930,1713761441876,-150.0,0.00014992,2]
[323162931,1713761441886,-155.52084611,0.00014992,2]
[323162932,1713761441896,-150.0,0.00014992,2]
[323162933,1713761441905,-150.0,0.00014992,2]
[323162934,1713761441914,-150.0,0.00014992,2]
[323162935,1713761441923,-8582.08992213,0.00015004,2]
[323162936,1713761441935,-14815.74,0.00015005,2]
[323162937,1713761441945,-300.0,0.00015077,2]
[323162938,1713761441955,-153.11846306,0.00015083,2]
[323162939,1713761441965,-2503.878197,0.00015083,2]
[323162940,1713761441975,-13540.901953,0.00015083,2]
[323162941,1713761441984,-6911.815131,0.00015083,2]
[323162942,1713761441993,-164.14,0.00015125,2]
[323162943,1713761442003,-150.0,0.00015158,2]
[323162944,1713761442013,-150.0,0.00015269,2]
[323162945,1713761442023,-276.54,0.00015298,2]
[323162946,1713761442033,-1009.0,0.000153,2]
[323162947,1713761442043,-14797.66,0.00015308,2]
[323162948,1713761442053,-566.0,0.00015323,2]
[323162949,1713761442063,-150.0,0.00015325,2]
[323162950,1713761442072,-600.0,0.0001537,2]
[323162951,1713761442082,-400.0,0.000154,2]
[323162952,1713761442091,-455.73596685,0.0001543,2]
[323162953,1713761442101,-14976.69,0.00015463,2]
[323162954,1713761442111,-168.0,0.00015471,2]
[323162955,1713761442122,-198.0,0.0001549,2]
[323162956,1713761442131,-150.0,0.00015492,2]
[323162957,1713761442141,-8000.0,0.000155,2]
[323162958,1713761442151,-5000.0,0.000155,2]
[323162959,1713761442162,-1000.0,0.000155,2]
[323162960,1713761442172,-150.0,0.000155,2]
[323162961,1713761442184,-500.0,0.000155,5]
[323162962,1713761442194,-155.0,0.000155,2]
[323162963,1713761442204,-8000.0,0.00015525,2]
[323162964,1713761442215,-1340.07171355,0.0001553,2]
[323162965,1713761442226,-7500.0,0.00015531,2]
[323162966,1713761442235,-5000.0,0.00015531,2]
[323162967,1713761442245,-150.0,0.00015547,2]
[323162968,1713761442254,-500.0,0.0001555,2]
[323162969,1713761442265,-3434.5,0.0001555,2]
[323162970,1713761442274,-5000.0,0.00015563,2]
[323162971,1713761442283,-5000.0,0.00015594,2]
[323162972,1713761442293,-1923.75658816,0.00015599,2]
[323162973,1713761442303,-1000.0,0.000156,5]
[323162974,1713761442313,-455.73596681,0.00015621,2]
[323162975,1713761442323,-3528.26702456,0.00015624,2]
[323162976,1713761442333,-5000.0,0.00015625,2]
[323162977,1713761442344,-1445.08497739,0.00015629,2]
[323162978,1713761442353,-1292.16870759,0.0001563,2]
[323162979,1713761442363,-1565.92365924,0.0001563,2]
[323162980,1713761442372,-2619.15263144,0.0001565,2]
[323162981,1713761442382,-5000.0,0.00015656,2]
[323162982,1713761442391,-150.0,0.00015658,2]
[323162983,1713761442400,-905.5822,0.00015662,2]
[323162984,1713761442409,-200.0,0.00015669,2]
[323162985,1713761442421,-800.0,0.00015671,2]
[323162986,1713761442431,-800.0,0.00015671,2]
[323162987,1713761442441,-5000.0,0.00015688,2]
[323162988,1713761442450,-384.801,0.00015699,2]
[323162989,1713761442459,-1001.0,0.000157,2]
[323162990,1713761442469,-1000.0,0.000157,2]
[323162991,1713761442478,-1000.0,0.000157,2]
[323162992,1713761442488,-1001.0,0.000157,2]
[323162993,1713761442497,-1000.0,0.000157,2]
[323162994,1713761442507,-2114.0,0.000157,2]
[323162995,1713761442517,-1136.57407,0.000157,2]
[323162996,1713761442526,-1500.0,0.000157,5]
[323162997,1713761442535,-5000.0,0.00015719,2]
[323162998,1713761442545,-1000.0,0.0001572,2]
[323162999,1713761442554,-800.0,0.00015726,2]
[323163000,1713761442564,-800.0,0.00015726,2]
[323163001,1713761442573,-3998.38,0.0001575,2]
[323163002,1713761442582,-200.0,0.00015762,2]
[323163003,1713761442592,-1000.0,0.00015762,2]
[323163004,1713761442601,-500.0,0.00015762,2]
[323163005,1713761442612,-500.0,0.00015762,2]
[323163006,1713761442623,-200.0,0.00015762,2]
[323163007,1713761442634,-1000.0,0.00015762,2]
[323163008,1713761442643,-1000.0,0.00015762,2]
[323163009,1713761442653,-1000.0,0.00015762,2]
[323163010,1713761442662,-1000.0,0.00015762,2]
[323163011,1713761442672,-1014.0,0.00015762,2]
[323163012,1713761442681,-500.0,0.00015762,2]
[323163013,1713761442691,-200.0,0.00015762,2]
[323163014,1713761442700,-500.0,0.00015763,2]
[323163015,1713761442710,-200.0,0.00015763,2]
[323163016,1713761442720,-200.0,0.00015763,2]
[323163017,1713761442729,-1000.0,0.00015763,2]
[323163018,1713761442738,-1000.0,0.00015763,2]
[323163019,1713761442748,-500.0,0.00015763,2]
[323163020,1713761442758,-500.0,0.00015763,2]
[323163021,1713761442768,-500.0,0.00015763,2]
[323163022,1713761442778,-518.900238,0.00015763,2]
[323163023,1713761442787,-500.0,0.00015763,2]
[323163024,1713761442796,-500.0,0.00015763,2]
[323163025,1713761442806,-200.0,0.00015763,2]
[323163026,1713761442815,-200.0,0.00015763,2]
[323163027,1713761442825,-1000.0,0.000158,2]
[323163028,1713761442835,-1352.0,0.000158,2]
[323163029,1713761442845,-1000.0,0.000158,2]
[323163030,1713761442854,-1000.0,0.000158,2]
[323163031,1713761442863,-1000.0,0.000158,2]
[323163032,1713761442873,-1000.0,0.000158,2]
[323163033,1713761442882,-1000.0,0.000158,2]
[323163034,1713761442892,-1000.0,0.000158,2]
[323163035,1713761442901,-1000.0,0.000158,2]
[323163036,1713761442910,-2100.0,0.000158,5]
[323163037,1713761442920,-215.95019856,0.0001581,2]
[323163038,1713761442930,-150.44,0.0001581,2]
[323163039,1713761442939,-276.54,0.0001581,2]
[323163040,1713761442948,-276.54,0.0001581,2]
[323163041,1713761442957,-455.73596681,0.00015813,2]
[323163042,1713761442967,-1186.20667968,0.00015819,2]
[323163043,1713761442978,-340.6255,0.00015819,2]
[323163044,1713761442986,-237719.828,0.0001582,2]
[323163045,1713761442996,-150.0,0.00015825,2]
[323163046,1713761443005,-150.0,0.00015825,2]
[323163047,1713761443014,-150.0,0.00015825,2]
[323163048,1713761443023,-166.91,0.00015831,2]
[323163049,1713761443033,-167.17,0.00015831,2]
[323163050,1713761443042,-166.67,0.00015831,2]
[323163051,1713761443051,-800.0,0.00015836,2]
[323163052,1713761443060,-300.02,0.00015889,2]
[323163053,1713761443070,-5543.2772288,0.00015889,2]
[323163054,1713761443080,-195.33,0.0001589,2]
[323163056,1713761443090,-320.794678,0.0001589,2]
[323163057,1713761443100,-4230.7674635,0.00015898,2]
[323163058,1713761443109,-891.15530996,0.00015899,2]
[323163059,1713761443119,-327.79965537,0.00015899,2]
[323163060,1713761443128,-14647.33,0.000159,2]
[323163061,1713761443138,-67617.22480145,0.000159,2]
[323163062,1713761443155,-1000.0,0.000159,2]
[323163063,1713761443165,-2600.0,0.000159,5]
[323163064,1713761443174,-20000.0,0.0001592,2]
[323163065,1713761443186,-200.0,0.0001595,2]
[323163067,1713761443195,-3405.67758686,0.0001596,2]
[323163069,1713761443205,-150.44,0.00015984,2]
[323163070,1713761443215,-150.44,0.00015984,2]
[323163073,1713761443226,-150.44,0.00015984,2]
[323163075,1713761443236,-276.54,0.00015984,2]
[323163077,1713761443246,-276.54,0.00015984,2]
[323163079,1713761443255,-276.54,0.00015984,2]
[323163081,1713761443265,-323.0,0.00015988,5]
[323163083,1713761443275,-2224.1821176,0.0001599,2]
[323163085,1713761443285,-150.44,0.0001599,2]
[323163087,1713761443294,-150.44,0.0001599,2]
[323163089,1713761443303,-276.54,0.0001599,2]
[323163091,1713761443312,-150.0,0.00015991,2]
[323163093,1713761443322,-497912.57468905,0.00015994,2]
[323163095,1713761443333,-155.51343991,0.00015998,2]
[323163096,1713761443346,-155.12429185,0.00015999,2]
[323163097,1713761443356,-1000.0,0.00016,2]
[323163098,1713761443367,-1000.0,0.00016,2]
[323163099,1713761443377,-260.08774264,0.00016,2]
[323163100,1713761443388,-699.0,0.00016,2]
[323163101,1713761443398,-699.0,0.00016,2]
[323163102,1713761443409,-699.0,0.00016,2]
[323163103,1713761443421,-699.0,0.00016,2]
[323163104,1713761443433,-699.0,0.00016,2]
[323163105,1713761443443,-699.0,0.00016,2]
[323163106,1713761443454,-699.0,0.00016,2]
[323163107,1713761443688,-699.0,0.00016,2]
[323163108,1713761443698,-699.0,0.00016,2]
[323163109,1713761443708,-699.0,0.00016,2]
[323163110,1713761443717,-20238.73520193,0.00016,2]
[323163111,1713761443727,-20239.44930878,0.00016,2]
[323163112,1713761443736,-20238.45365098,0.00016,2]
[323163113,1713761443745,-20238.70152274,0.00016,2]
[323163114,1713761443755,-4000.98,0.00016,2]
[323163115,1713761443765,-500.0,0.00016,2]
[323163116,1713761443775,-153620.57722475,0.00016,2]
[323163117,1713761443785,-1174.11763313,0.00016,2]
[323163118,1713761443794,-362.65084657,0.00016,2]
[323163119,1713761443803,-3119.0,0.00016,2]
[323163120,1713761443813,-1850.0,0.00016,2]
[323163121,1713761443822,-996.80493,0.00016,2]
[323163122,1713761443831,-150.0,0.00016,2]
[323163123,1713761443840,-1509.45344907,0.00016,2]
[323163124,1713761443850,-455.73596681,0.00016004,2]
[323163125,1713761443861,-4230.76746341,0.00016038,2]
[323163126,1713761443871,-150.44,0.00016079,2]
[323163127,1713761443881,-276.54,0.00016079,2]
[323163128,1713761443890,-1577.97,0.00016082,2]
[323163129,1713761443899,-903.96,0.00016084,3]
[323163130,1713761443909,-451.98,0.00016084,3]
[323163131,1713761443918,-3332.53706,0.00016089,2]
[323163133,1713761443928,-13197.5907236,0.00016089,2]
[323163136,1713761443941,-1383.9318446,0.00016089,2]
[323163138,1713761443950,-86657.8279651,0.00016089,2]
[323163140,1713761443960,-209.818431,0.00016089,2]
[323163142,1713761443969,-4384.2110555,0.00016089,2]
[323163143,1713761443979,-150.44,0.0001609,2]
[323163145,1713761443988,-1102.83679709,0.000161,2]
[323163146,1713761443998,-138973.25605834,0.000161,10]
[323163147,1713761444008,-155.28397182,0.000161,2]
[323163148,1713761444017,-483.0,0.000161,2]
[323163149,1713761444026,-1000.0,0.000161,2]
[323163150,1713761444036,-150.0,0.00016102,2]
[323163151,1713761444045,-200.5,0.0001611,10]
[323163152,1713761444055,-4529.86,0.00016116,2]
[323163153,1713761444064,-276.54,0.00016131,2]
[323163154,1713761444074,-100000.000001,0.00016141,2]
[323163155,1713761444083,-150.0,0.00016158,2]
[323163156,1713761444092,-4230.76746341,0.00016177,2]
[323163157,1713761444102,-455.73596681,0.00016196,2]
[323163158,1713761444111,-2157.7563047,0.000162,2]
[323163159,1713761444121,-500.0,0.000162,2]
[323163160,1713761444130,-566.0,0.00016225,2]
[323163161,1713761444139,-835.21,0.00016252,2]
[323163162,1713761444149,-323.32,0.00016279,2]
[323163163,1713761444158,-13620.0,0.000163,2]
[323163164,1713761444168,-1008.0,0.000163,2]
[323163165,1713761444177,-150.0,0.00016301,2]
[323163166,1713761444188,-150.0,0.00016301,2]
[323163167,1713761444198,-150.0,0.00016301,2]
[323163168,1713761444207,-4230.76746341,0.00016317,2]
[323163169,1713761444216,-150.0,0.00016324,2]
[323163170,1713761444225,-150.44,0.00016328,2]
[323163171,1713761444235,-370.69657917,0.00016338,2]
[323163172,1713761444244,-2519.05482045,0.00016338,2]
[323163173,1713761444254,-195.09262066,0.00016338,2]
[323163174,1713761444263,-1028.04254122,0.00016338,2]
[323163175,1713761444272,-188.08967467,0.00016338,2]
[323163176,1713761444281,-14259.36270683,0.00016338,2]
[323163177,1713761444290,-10000.0,0.00016338,2]
[323163178,1713761444299,-110848.43,0.0001635,6]
[323163179,1713761444309,-150.0,0.0001638,2]
[323163180,1713761444318,-455.73596681,0.00016387,2]
[323163181,1713761444327,-500.0,0.000164,2]
[323163182,1713761444337,-250.0,0.000164,2]
[323163183,1713761444350,-252.5,0.000164,2]
[323163184,1713761444359,-200.0,0.0001641,2]
[323163185,1713761444368,-150.44,0.00016417,2]
[323163186,1713761444377,-276.54,0.00016417,2]
[323163187,1713761444386,-151.0,0.00016427,2]
[323163188,1713761444396,-151.0,0.00016427,2]
[323163189,1713761444405,-151.0,0.00016427,2]
[323163190,1713761444415,-151.0,0.00016427,2]
[323163191,1713761444424,-151.0,0.00016427,2]
[323163192,1713761444435,-3332.53706,0.00016427,2]
[323163193,1713761444444,-3332.53706,0.00016427,2]
[323163194,1713761444453,-3332.53706,0.00016427,2]
[323163195,1713761444461,-10600.7189954,0.00016427,2]
[323163196,1713761444470,-8003.8472672,0.00016427,2]
[323163197,1713761444479,-5406.975539,0.00016427,2]
[323163198,1713761444488,-1383.9318446,0.00016427,2]
[323163199,1713761444497,-1383.9318446,0.00016427,2]
[323163200,1713761444507,-1383.9318446,0.00016427,2]
[323163201,1713761444516,-82572.6177265,0.00016427,2]
[323163202,1713761444524,-78487.4074879,0.00016427,2]
[323163203,1713761444534,-74402.1972493,0.00016427,2]
[323163204,1713761444542,-4169.1162299,0.00016427,2]
[323163205,1713761444551,-3954.0214043,0.00016427,2]
[323163206,1713761444560,-3738.9265787,0.00016427,2]
[323163207,1713761444569,-150.44,0.00016428,2]
[323163208,1713761444578,-644.01360093,0.00016437,2]
[323163209,1713761444587,-585.03313055,0.00016438,2]
[323163210,1713761444596,-500.0,0.00016438,2]
[323163211,1713761444605,-500.0,0.00016438,2]
[323163212,1713761444614,-569.28228583,0.00016438,2]
[323163213,1713761444623,-561.16562147,0.00016438,2]
[323163214,1713761444634,-500.0,0.00016438,2]
[323163215,1713761444643,-500.0,0.00016438,2]
[323163216,1713761444652,-500.0,0.00016438,2]
[323163217,1713761444661,-500.0,0.00016438,2]
[323163218,1713761444670,-312.01508912,0.00016438,2]
[323163219,1713761444679,-500.0,0.00016438,2]
[323163220,1713761444690,-500.0,0.00016438,2]
[323163221,1713761444699,-500.0,0.00016438,2]
[323163222,1713761444708,-215.30572926,0.00016438,2]
[323163223,1713761444717,-500.0,0.00016438,2]
[323163224,1713761444726,-500.0,0.00016438,2]
[323163225,1713761444735,-500.0,0.00016438,2]
[323163226,1713761444744,-500.0,0.00016438,2]
[323163227,1713761444753,-501.79406562,0.00016438,2]
[323163228,1713761444762,-500.0,0.00016438,2]
[323163229,1713761444772,-502.11482496,0.00016438,2]
[323163230,1713761444781,-500.0,0.00016438,2]
[323163231,1713761444789,-500.0,0.00016438,2]
[323163232,1713761444798,-500.0,0.00016438,2]
[323163233,1713761444807,-500.0,0.00016438,2]
[323163234,1713761444816,-500.0,0.00016438,2]
[323163235,1713761444826,-503.57034973,0.00016438,2]
[323163236,1713761444835,-502.34318102,0.00016438,2]
[323163237,1713761444844,-500.0,0.00016438,2]
[323163238,1713761444853,-500.0,0.00016438,2]
[323163239,1713761444862,-500.0,0.00016438,2]
[323163240,1713761444872,-500.0,0.00016438,2]
[323163241,1713761444881,-500.0,0.00016438,2]
[323163242,1713761444890,-500.0,0.00016438,2]
[323163243,1713761444899,-524.99,0.00016438,2]
[323163244,1713761444909,-759.82,0.00016438,2]
[323163245,1713761444918,-500.0,0.00016438,2]
[323163246,1713761444927,-500.0,0.00016438,2]
[323163247,1713761444938,-500.0,0.00016438,2]
[323163248,1713761444947,-962.99,0.00016438,2]
[323163249,1713761444956,-500.0,0.00016438,2]
[323163250,1713761444965,-500.0,0.00016438,2]
[323163251,1713761444975,-502.64840131,0.00016438,2]
[323163252,1713761444984,-500.0,0.00016438,2]
[323163253,1713761444993,-725.75,0.00016438,2]
[323163254,1713761445002,-500.0,0.00016438,2]
[323163255,1713761445011,-501.92721605,0.00016438,2]
[323163256,1713761445020,-500.0,0.00016438,2]
[323163257,1713761445029,-500.0,0.00016438,2]
[323163258,1713761445038,-500.0,0.00016438,2]
[323163259,1713761445047,-500.0,0.00016438,2]
[323163260,1713761445056,-500.0,0.00016438,2]
[323163261,1713761445066,-504.34205366,0.00016438,2]
[323163262,1713761445075,-500.0,0.00016438,2]
[323163263,1713761445085,-500.0,0.00016438,2]
[323163264,1713761445094,-500.0,0.00016438,2]
[323163265,1713761445105,-500.0,0.00016438,2]
[323163266,1713761445115,-500.0,0.00016438,2]
[323163267,1713761445124,-500.0,0.00016438,2]